Cogmind - Beta 11 @@@ ROGUE MODE // 2022.03.24 @ 18:35:50 Player: FrankBlack78 Result: Destroyed by G-34 Mercenary with Small Laser Performance ------------- Evolutions (1) 500 Regions Visited (2) 400 Robots Destroyed (22) 110 Value Destroyed (685) 685 Prototype IDs (3) 60 Alien Tech Used (0) 0 Bonus (0) 0 TOTAL SCORE: 1755 Bonus ------- None Cogmind --------- Core Integrity 0/400 Matter 300/300 Energy 300/300 System Corruption 0% Temperature Cool (6) Movement Core (400) Ox7 Location -9/Materials Parts ------- > --- POWER (1) -------- (None) > --- PROPULSION (2) --- (None) > --- UTILITY (4) ------ Large Storage Unit Large Battery > --- WEAPON (2) ------- (None) > --- INVENTORY (15) --- Ion Engine Carbon-fiber Leg Carbon-fiber Leg Large Storage Unit High-capacity Battery (250) Terrain Scan Processor Improved EM Shotgun Medium Laser Medium Laser Beam Rifle Light Assault Rifle Light Assault Rifle Grenade Launcher Grenade Launcher Peak State ------------ > --- POWER ------------ Ion Engine > --- PROPULSION ------- Carbon-fiber Leg Carbon-fiber Leg > --- UTILITY ---------- Large Storage Unit Large Battery Seismic Detector ECM Suite > --- WEAPON ----------- Improved EM Shotgun Advanced Beam Cannon > --- INVENTORY -------- Ion Engine Carbon-fiber Leg Carbon-fiber Leg Large Storage Unit High-capacity Battery Terrain Scan Processor Medium Laser Medium Laser Beam Rifle Light Assault Rifle Light Assault Rifle Grenade Launcher Grenade Launcher [Rating: 18] Favorites ----------- Power Ion Engine Engine Ion Engine Propulsion Aluminum Leg Leg Aluminum Leg Utility Large Storage Unit Device Seismic Detector Storage Large Storage Unit Weapon Assault Rifle Energy Gun Improved EM Shotgun Energy Cannon Light EM Pulse Cannon Ballistic Gun Assault Rifle Build | -11 -10 -9 ------- Run | Scr Mat Mat Slots Evolved 2 | . . 2 Power . | . . . Propulsion . | . . . Utility 2 | . . 2 Weapon . | . . . Parts Attached 28 | 6 6 16 Power 3 | 1 . 2 Engine 3 | 1 . 2 Core . | . . . Reactor . | . . . Propulsion 7 | 2 1 4 Treads . | . . . Leg 7 | 2 1 4 Wheel . | . . . Hover . | . . . Flight . | . . . Utility 5 | 1 2 2 Device 2 | . 1 1 Storage 3 | 1 1 1 Processor . | . . . Hackware . | . . . Protection . | . . . Artifact . | . . . Weapon 13 | 2 3 8 Energy Gun 5 | 1 2 2 Energy Cannon 6 | . 1 5 Ballistic Gun 2 | 1 . 1 Ballistic Cannon . | . . . Launcher . | . . . Special Weapon . | . . . Impact Weapon . | . . . Slashing Weapon . | . . . Piercing Weapon . | . . . Special Melee Weapon . | . . . Unidentified Prototypes 2 | . . 2 Parts Lost 9 | . . 9 Power 1 | . . 1 Propulsion 3 | . . 3 Utility 2 | . . 2 Weapon 3 | . . 3 Highest Loss Streak 3 | . . 3 To Critical Strikes . | . . . Average Slot Usage (%) 93 | . 96 91 Engine 11 | . 14 10 Leg 23 | . 27 19 Device 15 | . 10 19 Storage 17 | . 13 21 Energy Gun 5 | . 4 6 Energy Cannon 11 | . 9 12 Ballistic Gun 6 | . 14 . Naked Turns . | . . . Heaviest Build 39 | 14 32 39 Greatest Support 30 | 20 20 30 Greatest Overweight (x) 4 | 4 1 3 Average Overweight (x) . | . . 1 Largest Inventory Capacity 15 | 8 15 15 Average Capacity 13 | 7 13 15 Most Carried 15 | 4 13 15 Average Carried 10 | 2 9 13 Final Capacity 15 | 8 15 15 Final Carried 14 | 4 13 14 Class Distribution -------------------- 100% | Mutant Dominant Class ---------------- Mutant | -10/Materials Mutant | -9/Materials Resources | -11 -10 -9 ----------- Run | Scr Mat Mat Matter Collected 603 | 220 190 193 Remotely . | . . . Salvage Created 886 | . 344 542 Parts 57 | . 23 34 Haulers Intercepted . | . . . Recyclers Shooed . | . . . Parts Field Recycled . | . . . Retrieved Matter . | . . . Parts Self-Destructed . | . . . Prevented . | . . . Kills | -11 -10 -9 ------- Run | Scr Mat Mat Combat Hostiles Destroyed 19 | . 9 10 Guns 5 | . 4 1 Cannons 13 | . 5 8 AOE 1 | . . 1 Classes Destroyed 5 | . 3 2 Watcher 3 | . 3 . Swarmer 5 | . 5 . Grunt 8 | . 4 4 Duelist 1 | . . 1 Sentry 5 | . . 5 Best Kill Streak 3 | . 3 3 Combat Bots Only 3 | . 3 3 Max Kills in Single Turn 1 | . 1 1 Gunslinging . | . . . Exploded 1 | . . 1 Melee . | . . . Uniques/NPCs Destroyed . | . . . Combat | -11 -10 -9 -------- Run | Scr Mat Mat Damage Taken 1939 | . 479 1460 Core 497 | . 94 403 Absorbed by Shields . | . . . Regen/Repaired (Parts) 45 | . . 45 Core Remaining (%) 81 | 100 62 . Volleys Fired 61 | . 31 30 Largest 2 | . 2 2 Hottest 124 | . 76 124 Shots Fired 121 | . 62 59 Gun 45 | . 34 11 Cannon 76 | . 28 48 Launcher . | . . . Special . | . . . Kinetic 31 | . 31 . Thermal 33 | . 3 30 Explosive . | . . . Electromagnetic 57 | . 28 29 Robot Hit Streak 12 | . 7 12 Robot Miss Streak 3 | . 3 2 Penetration Max . | . . . Secondary Targets . | . . . Shots Hit Robots 81 | . 36 45 Core Hits 29 | . 13 16 Critical Kills . | . . . Critical Parts Destroyed . | . . . Critical Strikes . | . . . Melee Attacks . | . . . Impact . | . . . Slashing . | . . . Piercing . | . . . Sneak Attacks . | . . . Combat Hostiles . | . . . Follow-up Attacks . | . . . Damage Inflicted 1577 | . 595 982 Guns 299 | . 127 172 Cannons 1167 | . 433 734 Explosions 101 | . 25 76 Melee . | . . . Ramming 10 | . 10 . Kinetic 102 | . 102 . Thermal 532 | . 50 482 Explosive . | . . . Electromagnetic 933 | . 433 500 Impact . | . . . Slashing . | . . . Piercing . | . . . Highest Corruption . | . . . Average Corruption . | . . . Corruption Purged . | . . . Corruption Blocked . | . . . Overload Shots . | . . . Overflow Damage 39 | . 33 6 Projectiles 39 | . 33 6 Explosions . | . . . Melee . | . . . Knockbacks . | . . . Impact . | . . . Kinetic . | . . . Secondary . | . . . Self-Inflicted Damage 182 | . 37 145 Shots 4 | . 1 3 Rammed . | . . . Targets Rammed 1 | . 1 . Kicked 1 | . 1 . Crushed . | . . . Highest Temperature 451 | . 120 451 Average Temperature 97 | . 31 144 Received Heat Transfer 792 | . 174 618 Effects 6 | . . 6 Shutdowns 1 | . . 1 Interference 3 | . . 3 Matter Decay 1 | . . 1 Damage (minor) 1 | . . 1 Siege Activations . | . . . Robots Corrupted . | . . . Combat Hostiles . | . . . Parts Fried 7 | . 3 4 Impact Corruptions . | . . . Robots Melted . | . . . Combat Hostiles . | . . . Parts Melted . | . . . Heat Transferred 914 | . 124 790 Parts Sabotaged . | . . . Parts Stolen . | . . . Parts Stripped . | . . . Power Chain Reactions 3 | . 1 2 Missiles Intercepted . | . . . Alert | -11 -10 -9 ------- Run | Scr Mat Mat Peak Influence 291 | . 269 291 Initial 90 | . . 90 Average 92 | . 85 104 Maximum Alert Level 1 | . 1 1 Low Security (%) 84 | 100 91 77 Level 1 15 | . 8 22 Level 2 . | . . . Level 3 . | . . . Level 4 . | . . . Level 5 . | . . . High Security . | . . . Max Security . | . . . Squads Dispatched 2 | . 2 . Investigation . | . . . Extermination . | . . . Reinforcement 2 | . 2 . Assault . | . . . Garrison . | . . . Intercept . | . . . Searches Triggered . | . . . Construction Impeded . | . . . Haulers Reinforced . | . . . Active Scanning Responses . | . . . Cargo Convoy Interrupts . | . . . Stealth | -11 -10 -9 --------- Run | Scr Mat Mat Distress Signals 3 | . 2 1 Communications Jammed . | . . . Distress Signals . | . . . Times Spotted 36 | . 21 15 Peak Tracking Total 3 | . 3 3 Tactical Retreats 4 | . 1 3 Traps | -11 -10 -9 ------- Run | Scr Mat Mat Traps Triggered . | . . . Indirectly . | . . . Trap Hack Attempts . | . . . Triggered . | . . . Disarmed . | . . . Reprogrammed . | . . . Reused . | . . . Traps Extracted . | . . . Installed . | . . . Triggered . | . . . Machines | -11 -10 -9 ---------- Run | Scr Mat Mat Machines Disabled 3 | . 1 2 Max in Single Turn 2 | . 1 2 Machines Sabotaged . | . . . Garrisons Compromised . | . . . Overloaded Fab Kills . | . . . Hacking | -11 -10 -9 --------- Run | Scr Mat Mat Machines Accessed 9 | . 3 6 Terminals 7 | . 3 4 Fabricators . | . . . Repair Stations 2 | . . 2 Recycling Units . | . . . Scanalyzers . | . . . Garrison Access . | . . . Total Hacks 20 | . 8 12 Successful 13 | . 4 9 Failed 7 | . 4 3 Catastrophic 1 | . 1 . Database Lockouts . | . . . Manual . | . . . Terminals 17 | . 8 9 Fabricators . | . . . Repair Stations 3 | . . 3 Recycling Units . | . . . Scanalyzers . | . . . Garrison Access . | . . . Terminal Hacks 11 | . 4 7 Record 2 | . . 2 Prototype ID Bank 1 | . . 1 Emergency Access Points 1 | . 1 . Alert Level 2 | . . 2 Unreport Threat 1 | . . 1 Locate Traps 3 | . 2 1 Transport Status 1 | . 1 . Fabricator Hacks . | . . . Repair Station Hacks 2 | . . 2 Scan Component 1 | . . 1 Repair 1 | . . 1 Recycling Unit Hacks . | . . . Scanalyzer . | . . . Garrison Access Hacks . | . . . Unauthorized Hacks . | . . . Terminals . | . . . Fabricators . | . . . Repair Stations . | . . . Recycling Units . | . . . Scanalyzers . | . . . Garrison Access . | . . . Data Cores Recovered . | . . . Used . | . . . Hacking Detections 8 | . 2 6 Full Trace Events . | . . . Feedback Events . | . . . Feedback Blocked . | . . . Robot Schematics Acquired . | . . . Robots Built . | . . . Authchips . | . . . Time . | . . . Total Robot Build Rating . | . . . Part Schematics Acquired . | . . . Parts Built . | . . . Authchips . | . . . Time . | . . . Total Part Build Rating . | . . . Parts Repaired 1 | . . 1 Time 26 | . . 26 Parts Recycled . | . . . Recycled Matter . | . . . Retrieved Matter . | . . . Retrieved Components . | . . . Parts Scanalyzed . | . . . Part Schematics Acquired . | . . . Parts Damaged . | . . . Bothacking | -11 -10 -9 ------------ Run | Scr Mat Mat Used RIF Installer . | . . . Robots Hacked . | . . . Non-combat . | . . . Combat . | . . . Robot Hacks Applied . | . . . Relay Couplers Released . | . . . Fabnet Peak Effective % . | . . . Robots Rewired . | . . . Allies Hacked . | . . . Hacks Repelled . | . . . Allies | -11 -10 -9 -------- Run | Scr Mat Mat Total Allies . | . . . Largest Group . | . . . Highest-Rated Group . | . . . Highest-Rated Ally . | . . . Total Orders . | . . . Ally Attacks . | . . . Total Damage . | . . . Kills . | . . . Allies Corrupted . | . . . Allies Melted . | . . . Intel | -11 -10 -9 ------- Run | Scr Mat Mat Robot Analysis Total . | . . . Derelict Logs Recovered . | . . . Drone Launches . | . . . Drone Recoveries . | . . . Exploration | -11 -10 -9 ------------- Run | Scr Mat Mat Turns Passed 2414 | 63 1132 1219 Spaces Moved 923 | 38 498 387 Core 12 | 12 . . Treads . | . . . Legs 911 | 26 498 387 Wheels . | . . . Hover . | . . . Flight . | . . . Fastest Speed 50 | 50 120 190 Average Speed 174 | 133 164 191 Slowest Speed 330 | 250 190 330 Overloaded Moves . | . . . Propulsion Burnouts . | . . . Robots Hopped . | . . . Cave-ins Triggered . | . . . Exploration Rate (%) 32 | 3 58 37 Regions Visited 2 Branch Regions . Pre-discovered Areas . | . . . Known Exits Taken . | . . . Unknown Exits Taken 2 | 1 1 . Scrap Searched . | . . . Spaces Dug . | . . . Terrain Destroyed 48 | . 3 45 Melee . | . . . Projectile . | . . . AOE 48 | . 3 45 Terrain Rammed . | . . . Walls Destroyed . | . . . Machines Disabled . | . . . Actions | -11 -10 -9 --------- Run | Scr Mat Mat Total 1607 | 47 752 808 Wait 545 | . 191 354 Move 921 | 37 497 387 Hop . | . . . Pick Up 25 | 4 13 8 Fast Attach 16 | 6 5 5 Attach 6 | . 1 5 Detach 10 | . 5 5 Swap 6 | . . 6 Drop 16 | . 8 8 Fire 61 | . 31 30 Melee . | . . . Ram . | . . . Kick 1 | . 1 . Crush . | . . . Escape Stasis . | . . . Rewire . | . . . Trap . | . . . Miscellaneous . | . . . Route ------- -11/Scrapyard -10/Materials (discovered 3 exits: *Mat x2 / [*Min]) -9/Materials (discovered 3 exits: [*Mat] / [*Min] / [*Sto]) History --------- Turn | Location | Event 29 | -11/Scrapyard | Discovered new exit (range 15) 64 | -11/Scrapyard | Entered Materials 304 | -10/Materials | Build established: Mutant 547 | -10/Materials | Discovered new exit (range 5) 844 | -10/Materials | Discovered new exit (range 16) 1105 | -10/Materials | Discovered new exit (range 11) 1196 | -10/Materials | Entered another Materials area 1196 | -9/Materials | Evolved 2 slots: Utility x2 1577 | -9/Materials | Repaired Ion Engine 1722 | -9/Materials | Discovered new exit (range 4) 1854 | -9/Materials | Discovered new exit (range 4) 1854 | -9/Materials | Discovered new exit (range 13) 2350 | -9/Materials | Core integrity fell below 50% 2368 | -9/Materials | Lost 3 parts (1p1n1w) 2392 | -9/Materials | Core integrity fell below 20% 2415 | -9/Materials | Destroyed by G-34 Mercenary with Small Laser Last Messages --------------- Downloading prototype IDs... Imp. VTOL Module Imp. EM Shotgun 02171_ K-01 Serf collects debris. 02207_ Heat Sink fried. 02207_ Y-45 Defender destroyed. 02220_ G-47 Trooper destroyed. 02232_ G-34 Mercenary destroyed. 02234_ U-05 Engineer builds a Door. 02236_ Overheating: System interference. 02236_ Adv. Beam Cannon temporarily disabled. 02236_ ECM Suite temporarily disabled. 02236_ Adv. Beam Cannon temporarily disabled. 02237_ Seismic Detector destroyed. 02245_ K-01 Serf collects debris. 02279_ Lgt. EM Pulse Cannon destroyed. 02297_ Carbon-fiber Leg destroyed. 02331_ Ion Engine destroyed. 02337_ Adv. Beam Cannon destroyed. 02395_ ECM Suite destroyed. Map ----- +----------------------------------------------------+ | ???????????????????????????????????? | | ???????????????????????????????????? | | ???????????????????????????????????? | | ???????????????????????????????????? | | ???????????????????????????????????? | | ???????????????????????????????????? | | ???????????????????????????????????? | | ???????????????????????????????????? | | ???????????????????????????????????? | | ???????????????????????????????????? | | ???????????????????????????????????? | | ???????????????????????????????????? | | ???????????????????????????????????? | | ???????????????????????????????????? | | ???????????????????????????????????? | | ???????????????????????????????????? | | ?????????????????###???????????????? | | ????????????????? ???????????????? | | ???????????????? ????????????????? | | ???????????????? ?????????????????? | | ??????????????? #?????????????????? | | ???##########?? #?????????????????? | | ???# #? #?????????????????? | | ???# #? ##????????????????? | | ???# [# #????????????????? | | ???# @# #????????????????? | | ???# %%g #????????????????? | | ???# =u# #???????????????? | | ???# u# #???????#####????? | | ???# u#? ########## ###### | | ???# #? | | ???########+#?? ###???# | | ??????????# #?? #?????# ##### | | ??##??????# #??? #?????# #?### | | ### #####?# #??? #?????# #?# | | # [ #?# #????#?????# #?# | | # " #?# #???######## #?# | | # T ### ###?# #?# | | # """ " # #?# ######## #?# | | # """ [#= ### # #??# #?# | | # """ =+% ########?# | | # !# ##### #????????# | | # """ ==# #????###???????????# | | # """ ==#######??????????????????### | | # """ ???????????????????????????? | | # ???????????????????????????? | | ########???????????????????????????? | | | | | | | +----------------------------------------------------+ Best States ------------- Heat Dissipation 28 Energy Generation 10 Energy Capacity 450 Matter Stores 300 Matter Capacity 300 Sight Range 16 Terrain Scan Density 10 ECM Strength 1 Evasion (%) 55 Item Schematics ----------------- None Robot Schematics ------------------ None Fabricated ------------ Nothing Alien Tech Used ----------------- None Achievements -------------- Everything Is Under Control Challenges ------------ None Game ------ Seed PhasingHypercooledAutohacker Manual? 0 Play Time 00:50:12 Cumulative 17.6 hours Start 2022.03.23 @ 18:23:32 End 2022.03.24 @ 18:35:50 Sessions 3 Manual Loads 0 Difficulty Rogue Special Mode None Game No. 9 Rogue 9 Adventurer 0 Explorer 0 Win Type - Total 0 Types 0/0/0/0/0/0/0/0/0 Lore% 4 Gallery% 15 Achievement% 12 Wizard Run 0 Options --------- ASCII 0 Keyboard 1 Movement Numpad Keybinds 0 Fullscreen 1 Font 16/SmallcapsGlow Map View 76x50 Tactical HUD 1 Map Filters NONE Filters NONE Steam 1 RUN: 1425d349-9e3d-4763-89a8-99a76e2d36ab